bitfinex-derivatives/quotes_BTCF0:USTF0_20241213
["timestamp","ask_amount","ask_price","bid_price","bid_amount"]
[1734087165709,2.18388554,100500.0,100490.0,0.002]
[1734087165908,2.18388554,100500.0,100490.0,0.051753]
[1734087166216,2.39269549,100500.0,100490.0,0.051753]
[1734087167209,2.39269549,100500.0,100490.0,0.002]
[1734087167511,2.63133543,100500.0,100490.0,0.002]
[1734087168305,0.73063351,100500.0,100490.0,0.051753]
[1734087168508,0.79318806,100500.0,100490.0,0.051753]
[1734087168710,1.13133543,100500.0,100490.0,0.002]
[1734087170815,0.89269549,100500.0,100490.0,0.002]
[1734087172822,0.95525004,100500.0,100490.0,0.002]
[1734087173026,1.19388998,100500.0,100490.0,0.002]
[1734087174621,0.95525004,100500.0,100490.0,0.002]
[1734087175513,0.59445004,100500.0,100490.0,0.002]
[1734087175932,1.31605004,100500.0,100490.0,0.002]
[1734087176621,1.00202199,100500.0,100490.0,0.11430755]
[1734087176826,1.00202199,100500.0,100490.0,0.17750755]
[1734087177014,1.00052889,100500.0,100490.0,0.3548476]
[1734087177626,1.14961434,100500.0,100490.0,0.3548476]
[1734087180423,1.21216889,100500.0,100490.0,0.29229305]
[1734087180619,1.11283144,100500.0,100490.0,0.114953]
[1734087180824,0.24905461,100500.0,100490.0,0.41740215]
[1734087181121,0.24905461,100500.0,100490.0,0.96226217]
[1734087181322,0.24905461,100500.0,100490.0,0.60146217]
[1734087181830,0.1,100500.0,100490.0,0.18666872]
[1734087182526,0.3682003,100500.0,100490.0,0.9618481]
[1734087182720,0.21920013,100500.0,100490.0,0.78425694]
[1734087183325,0.21920013,100500.0,100490.0,0.96175447]
[1734087185120,0.1,100500.0,100490.0,0.60095447]
[1734087185321,0.1,100500.0,100490.0,0.96175447]
[1734087186323,0.1,100500.0,100490.0,0.72496625]
[1734087187021,0.1,100500.0,100490.0,0.36416625]
[1734087187022,0.21920013,100500.0,100490.0,0.36416625]
[1734087187323,0.1,100500.0,100490.0,0.72496625]
[1734087187524,0.21920013,100500.0,100490.0,0.78425694]
[1734087188819,0.1,100500.0,100490.0,0.96156489]
[1734087189324,0.1,100500.0,100490.0,0.72477667]
[1734087194317,0.1,100500.0,100490.0,0.78733122]
[1734087194517,0.6591003,100520.0,100510.0,0.049743]
[1734087194830,0.2983003,100520.0,100510.0,0.11229755]
[1734087195228,0.2682003,100520.0,100510.0,0.4748521]
[1734087195531,0.14900017,100550.0,100540.0,0.049728]
[1734087195828,0.19871917,100560.0,100550.0,0.049724]
[1734087196027,0.88351537,100570.0,100550.0,0.06255455]
[1734087196231,0.83380037,100570.0,100560.0,0.11227355]
[1734087196423,0.506,100570.0,100560.0,0.11227355]
[1734087197030,0.049719,100560.0,100550.0,0.049722]
[1734087197336,0.410519,100560.0,100550.0,0.050722]
[1734087197822,0.410519,100560.0,100550.0,0.049722]
[1734087198026,0.3608,100560.0,100540.0,0.09496008]
[1734087198225,0.049729,100540.0,100530.0,0.049731]
[1734087198422,0.410529,100540.0,100530.0,0.14469108]
[1734087199931,0.410529,100540.0,100530.0,0.14569108]
[1734087200834,0.41189449,100540.0,100530.0,0.15558964]
[1734087201529,0.47669449,100540.0,100530.0,0.15558964]
[1734087202534,0.50829449,100540.0,100530.0,0.06062956]
[1734087203632,0.50829449,100540.0,100530.0,0.01089856]
[1734087204931,0.50829449,100540.0,100530.0,0.06063156]
[1734087205132,0.36216549,100540.0,100530.0,0.54179164]
[1734087205331,0.51715331,100560.0,100540.0,0.049726]
[1734087205529,0.3608,100550.0,100540.0,0.14468608]
[1734087206039,0.3608,100550.0,100540.0,0.049726]
[1734087206040,0.410524,100550.0,100540.0,0.049726]
[1734087206336,0.50999184,100550.0,100540.0,0.049726]
[1734087207039,0.3608,100550.0,100540.0,0.14568608]
[1734087207430,0.3608,100550.0,100540.0,0.050726]
[1734087209136,0.45576008,100550.0,100540.0,0.050726]
[1734087209629,0.50548408,100550.0,100540.0,0.050726]
[1734087210832,0.049728,100540.0,100530.0,0.05963056]
[1734087211137,0.57078808,100540.0,100530.0,0.049732]
[1734087211337,2.07078808,100540.0,100530.0,0.049732]
[1734087211639,2.07078808,100540.0,100520.0,0.01947262]
[1734087211640,0.62052792,100540.0,100510.0,0.95667772]
[1734087211944,0.410533,100530.0,100520.0,0.049736]
[1734087213443,0.410533,100530.0,100520.0,0.050736]
[1734087213644,0.3608,100530.0,100520.0,0.050736]
[1734087214155,0.0309,100530.0,100520.0,0.054736]
[1734087216245,0.080633,100530.0,100520.0,0.054736]
[1734087218944,0.53739308,100530.0,100520.0,0.050736]
[1734087219552,0.68639325,100530.0,100520.0,0.050736]
[1734087220861,0.53739308,100530.0,100520.0,0.050736]
[1734087221452,0.68639325,100530.0,100520.0,0.050736]
[1734087222562,0.59143317,100530.0,100520.0,0.050736]
[1734087225355,0.77023337,100530.0,100520.0,0.050736]
[1734087229168,0.77023337,100530.0,100520.0,0.11309189]
[1734087229759,0.59143317,100530.0,100520.0,0.11309189]
[1734087232961,0.23063317,100530.0,100520.0,0.11309189]
[1734087233971,0.23063317,100530.0,100520.0,0.29009758]
[1734087234972,0.59143317,100530.0,100520.0,0.29009758]
[1734087237369,0.59143317,100530.0,100520.0,0.22774169]
[1734087237973,0.65378906,100530.0,100520.0,0.22774169]
[1734087240377,0.65378906,100530.0,100520.0,0.46374928]
[1734087241770,0.77023337,100530.0,100520.0,0.29009758]
[1734087243270,0.6212332,100530.0,100520.0,0.29009758]
[1734087243670,0.6212332,100530.0,100520.0,0.22774169]
[1734087243866,0.68358909,100530.0,100520.0,0.22774169]
[1734087244978,0.32278909,100530.0,100520.0,0.22774169]
[1734087245169,0.68358909,100530.0,100520.0,0.22774169]
[1734087245366,0.5715002,100530.0,100520.0,0.29009758]
[1734087245769,0.35983173,100530.0,100520.0,0.52610517]
[1734087245975,0.35983173,100530.0,100520.0,0.58846106]
[1734087246177,0.18103153,100530.0,100520.0,0.58846106]
[1734087246381,0.15013153,100530.0,100520.0,0.58846106]
[1734087247381,0.15013153,100530.0,100520.0,0.77225537]
[1734087248481,0.10013153,100540.0,100530.0,0.049733]
[1734087248672,0.10013153,100540.0,100530.0,0.70956493]
[1734087248876,0.10013153,100540.0,100530.0,0.64720904]
[1734087249170,0.56518189,100550.0,100530.0,0.70956493]
[1734087249370,0.56518189,100550.0,100540.0,0.22713923]
[1734087249577,0.74398209,100550.0,100540.0,0.22713923]
[1734087250179,0.56518189,100550.0,100540.0,0.22713923]
[1734087250378,0.74398209,100550.0,100540.0,0.049728]
[1734087251480,0.6816262,100550.0,100540.0,0.11308389]
[1734087251682,0.6816262,100550.0,100540.0,0.050728]
[1734087253082,0.502826,100550.0,100540.0,0.050728]
[1734087253277,0.502826,100550.0,100540.0,0.11308389]
[1734087256983,0.6816262,100550.0,100540.0,0.11308389]
[1734087257196,0.502826,100550.0,100540.0,0.050728]
[1734087259093,0.84344004,100550.0,100540.0,0.001]
[1734087259684,2.16463984,100550.0,100540.0,0.001]
[1734087260183,0.049733,100530.0,100520.0,0.22714623]
[1734087260379,0.52963442,100530.0,100520.0,0.049735]
[1734087260591,0.59113442,100530.0,100520.0,0.049735]
[1734087260893,0.71304103,100530.0,100520.0,0.049735]
[1734087261280,0.71304103,100530.0,100520.0,0.11209089]
[1734087261493,0.71304103,100530.0,100520.0,0.050735]
[1734087261993,0.71304103,100530.0,100520.0,0.11309089]
[1734087262586,0.71304103,100530.0,100520.0,0.12299719]
[1734087262992,0.53438889,100530.0,100520.0,0.30040842]
[1734087263185,0.504433,100530.0,100520.0,0.30040842]
[1734087265396,0.56678889,100530.0,100520.0,0.30040842]
[1734087266198,0.56678889,100530.0,100520.0,0.12299719]
[1734087266395,0.56678889,100530.0,100520.0,0.0606413]
[1734087266696,0.56678889,100530.0,100520.0,0.30040842]
[1734087267398,0.56678889,100530.0,100520.0,0.23805253]
[1734087268199,0.57658199,100530.0,100520.0,0.23805253]
[1734087269097,0.57658199,100530.0,100520.0,0.30040842]
[1734087270602,0.57658199,100530.0,100520.0,0.23805253]
[1734087271500,0.57658199,100530.0,100520.0,0.0606413]
[1734087274197,0.57658199,100530.0,100520.0,0.050735]
[1734087274901,0.57658199,100530.0,100520.0,0.001]
[1734087275407,0.67605973,100530.0,100520.0,0.001]
[1734087275699,0.049743,100510.0,100500.0,0.22715723]
[1734087276001,0.049743,100510.0,100500.0,0.28951312]
[1734087276002,0.68127697,100510.0,100500.0,0.28951312]
[1734087276199,0.68127697,100510.0,100500.0,0.11210189]
[1734087276394,0.74497697,100510.0,100500.0,0.11210189]
[1734087276698,0.65567023,100510.0,100500.0,0.11210189]
[1734087277004,0.65567023,100510.0,100500.0,0.11610189]
[1734087277397,0.65567023,100510.0,100500.0,0.11710189]
[1734087277697,0.65567023,100510.0,100500.0,0.054746]
[1734087277899,0.65567023,100510.0,100500.0,0.06457706]
[1734087278494,0.65567023,100510.0,100500.0,0.12693295]
[1734087278893,0.62621434,100510.0,100500.0,0.12693295]
[1734087279297,0.68857023,100510.0,100500.0,0.12693295]
[1734087280696,0.62621434,100510.0,100500.0,0.12693295]
[1734087281503,0.71542893,100510.0,100500.0,0.12693295]
[1734087284716,0.30488593,100510.0,100500.0,0.18928884]
[1734087284897,0.18581459,100510.0,100500.0,0.18928884]
[1734087285100,0.18581459,100510.0,100500.0,0.55008884]
[1734087285408,0.18581459,100510.0,100500.0,0.48773295]
[1734087285904,0.12211459,100510.0,100500.0,0.55008884]
[1734087286108,0.0329,100510.0,100500.0,0.72750007]
[1734087287001,0.12211459,100510.0,100500.0,0.72750007]
[1734087287416,0.0329,100510.0,100500.0,0.96417611]
[1734087288209,0.12211459,100510.0,100500.0,0.96417611]
[1734087289505,0.12211459,100510.0,100500.0,0.78676488]
[1734087290204,0.12211459,100510.0,100500.0,1.08275015]
[1734087290409,0.12211459,100510.0,100500.0,0.78676488]
[1734087290605,0.12211459,100510.0,100500.0,1.08275015]
[1734087291010,0.08921459,100510.0,100500.0,1.08275015]
[1734087291406,0.20828593,100520.0,100510.0,0.049743]
[1734087291604,0.08921459,100520.0,100510.0,0.98102182]
[1734087291902,0.29780549,100530.0,100520.0,0.049738]
[1734087291903,0.20828593,100530.0,100520.0,0.049738]
[1734087292106,0.08921459,100530.0,100520.0,1.06753075]
[1734087292305,0.26780549,100540.0,100530.0,0.049733]
[1734087292306,0.20828593,100540.0,100530.0,0.049733]
[1734087292505,0.20828593,100540.0,100530.0,0.65002379]
[1734087293612,0.21028593,100540.0,100530.0,0.65102379]
[1734087294712,0.21023852,100540.0,100530.0,0.65090678]
[1734087295313,0.09124508,100540.0,100530.0,0.47388889]
[1734087296811,0.09124508,100540.0,100530.0,0.411533]
[1734087297119,0.09124508,100540.0,100530.0,0.47388889]
[1734087298616,0.15360097,100540.0,100530.0,0.411533]
[1734087298808,0.14097308,100540.0,100530.0,0.47388889]
[1734087300310,0.21023852,100540.0,100530.0,0.11308889]
[1734087300510,0.09124508,100540.0,100530.0,0.050733]
[1734087300712,0.57103852,100540.0,100530.0,0.11308889]
[1734087300906,0.84494614,100540.0,100530.0,0.001]
[1734087301107,0.78544942,100540.0,100530.0,0.001]
[1734087301615,2.28544942,100540.0,100530.0,0.001]
[1734087302023,2.40433484,100540.0,100530.0,0.001]
[1734087302216,0.90433484,100540.0,100530.0,0.001]
[1734087302715,2.40433484,100540.0,100530.0,0.001]
[1734087302917,2.28544942,100540.0,100530.0,0.001]
[1734087303317,0.78544942,100540.0,100530.0,0.001]
[1734087304523,0.72309353,100540.0,100530.0,0.001]
[1734087305024,0.84197574,100540.0,100530.0,0.001]
[1734087305409,0.84197413,100540.0,100530.0,0.001]
[1734087305620,0.72309353,100540.0,100530.0,0.001]
[1734087305826,0.78544942,100540.0,100530.0,0.001]
[1734087306213,0.96393958,100540.0,100530.0,0.001]
[1734087306425,0.91137031,100540.0,100530.0,0.001]
[1734087306624,0.73288015,100540.0,100530.0,0.001]
[1734087308122,0.91137031,100540.0,100530.0,0.001]
[1734087309125,0.9737262,100540.0,100530.0,0.001]
[1734087309319,0.8249844,100540.0,100530.0,0.001]
[1734087310024,0.97366337,100540.0,100530.0,0.001]
[1734087310432,0.8249844,100540.0,100530.0,0.001]
[1734087311629,0.97370906,100540.0,100530.0,0.001]
[1734087312221,0.8249844,100540.0,100530.0,0.001]
[1734087313017,0.76262851,100540.0,100530.0,0.001]
[1734087313423,0.8249844,100540.0,100530.0,0.001]
[1734087313728,0.91140815,100540.0,100530.0,0.001]
[1734087313928,0.76262851,100540.0,100530.0,0.001]
[1734087315524,0.66316067,100540.0,100530.0,0.001]
[1734087318929,0.72551656,100540.0,100530.0,0.001]
[1734087319231,0.64649424,100540.0,100530.0,0.001]
[1734087319935,0.85473276,100540.0,100530.0,0.001]
[1734087320331,0.64649424,100540.0,100530.0,0.001]
[1734087320532,0.85473276,100540.0,100530.0,0.001]
[1734087320734,0.64649424,100540.0,100530.0,0.001]
[1734087320931,0.64649424,100540.0,100500.0,0.12711789]
[1734087320932,0.049738,100520.0,100500.0,0.12711789]
[1734087321137,0.60184686,100510.0,100480.0,0.58263068]
[1734087321325,0.11210889,100490.0,100480.0,0.33114396]
[1734087321830,0.08931068,100490.0,100480.0,0.33114396]
[1734087322140,0.6813604,100500.0,100480.0,0.40359783]
[1734087322734,0.7311124,100500.0,100480.0,0.41259783]
[1734087323329,0.06235589,100490.0,100480.0,0.11239808]
[1734087323526,0.20141957,100490.0,100480.0,0.07785498]
[1734087323729,0.6813644,100490.0,100480.0,0.02809798]
[1734087324337,0.77982585,100490.0,100480.0,0.02809798]
[1734087324525,0.45011068,100490.0,100480.0,0.14021187]
[1734087325841,0.49986368,100490.0,100480.0,0.14021187]
[1734087326440,0.410553,100490.0,100480.0,0.14021187]
[1734087329127,0.47290889,100490.0,100480.0,0.14021187]
[1734087329930,0.47290889,100490.0,100480.0,0.07785598]
[1734087330332,0.11210889,100490.0,100480.0,0.07785598]
[1734087333739,0.14520889,100490.0,100480.0,0.07785598]
[1734087338037,0.09545589,100490.0,100480.0,0.07785598]
[1734087344043,0.12855589,100490.0,100480.0,0.07785598]
[1734087344848,0.12855589,100490.0,100480.0,0.43865598]
[1734087345147,0.21786657,100490.0,100480.0,0.07785598]
[1734087346751,0.21786657,100490.0,100480.0,0.12139989]
[1734087348254,0.3370114,100490.0,100480.0,0.35742375]
[1734087348653,0.3370114,100490.0,100480.0,0.31387984]
[1734087349343,0.3370114,100490.0,100480.0,0.35742375]
[1734087349543,0.3370114,100490.0,100480.0,0.31387984]
[1734087349744,0.3370114,100490.0,100480.0,0.35742375]
[1734087350345,0.39663176,100490.0,100480.0,0.91611009]
[1734087350545,0.39663176,100490.0,100480.0,0.87256618]
[1734087351447,0.39663176,100490.0,100480.0,0.87350212]
[1734087352259,0.27748693,100490.0,100480.0,0.63650505]
[1734087354045,0.27748693,100490.0,100480.0,0.31489146]
[1734087354240,0.27748693,100490.0,100480.0,0.9172256]
[1734087354442,0.27748693,100490.0,100480.0,1.2780256]
[1734087354651,0.4561779,100490.0,100480.0,0.9172256]
[1734087354855,0.4561779,100490.0,100480.0,0.91738961]
[1734087355058,0.4561779,100490.0,100480.0,0.65346591]
[1734087355259,0.4561779,100490.0,100480.0,0.35843609]
[1734087355557,0.4561779,100490.0,100480.0,0.65346591]
[1734087355759,0.4561779,100490.0,100480.0,0.91747455]
[1734087356158,0.4561779,100490.0,100480.0,0.91737626]
[1734087356654,0.4561779,100490.0,100480.0,1.27817626]
[1734087356857,0.27748693,100490.0,100480.0,1.27817626]
[1734087357251,0.4561779,100490.0,100480.0,0.91737626]
[1734087357754,0.27748693,100490.0,100480.0,0.91737626]
[1734087357960,0.27748693,100490.0,100480.0,1.27817626]
[1734087358259,0.27748693,100490.0,100480.0,0.91737626]
[1734087358955,0.27748693,100490.0,100480.0,1.27817626]
[1734087359858,0.27748693,100490.0,100480.0,0.91737626]
[1734087360548,0.27748693,100490.0,100480.0,0.91721739]
[1734087361546,0.27748693,100490.0,100480.0,1.27801739]
[1734087361746,0.27748693,100490.0,100480.0,0.91721739]
[1734087363156,0.4561779,100490.0,100480.0,0.91721739]
[1734087363352,0.27748693,100490.0,100480.0,0.91721739]
[1734087363557,0.4561779,100490.0,100480.0,0.91721739]
[1734087364053,0.4561779,100490.0,100480.0,0.65346591]
[1734087364243,0.4561779,100490.0,100480.0,0.35843609]
[1734087364446,0.4561779,100490.0,100480.0,0.65346591]
[1734087364852,0.4561779,100490.0,100480.0,0.91696141]
[1734087365256,0.4561779,100490.0,100480.0,0.65346591]
[1734087365555,0.4561779,100490.0,100480.0,0.91740161]
[1734087365761,0.21513104,100490.0,100480.0,1.3404481]
[1734087366655,0.0075367,100490.0,100480.0,1.85529515]
[1734087366962,0.10412099,100510.0,100500.0,0.049748]
[1734087367279,0.0633,100530.0,100510.0,0.049743]
[1734087367470,0.0633,100530.0,100520.0,0.049738]
[1734087367768,0.60184686,100540.0,100530.0,0.049733]
[1734087368062,0.60184686,100540.0,100530.0,0.11208889]
[1734087368358,0.42315589,100540.0,100530.0,0.049733]
[1734087368665,0.410528,100540.0,100530.0,0.049733]
[1734087368853,0.47288389,100540.0,100530.0,0.049733]
[1734087370960,0.47688389,100540.0,100530.0,0.050733]
[1734087373056,0.47688389,100540.0,100530.0,0.05861442]
[1734087376761,0.414528,100540.0,100530.0,0.12097031]
[1734087377768,0.47688389,100540.0,100530.0,0.12097031]
[1734087383863,0.049738,100520.0,100510.0,0.43594]
[1734087384060,0.47289389,100520.0,100510.0,0.04974]
[1734087384462,0.410538,100520.0,100510.0,0.11209589]
[1734087385259,0.415538,100520.0,100510.0,0.11309589]
[1734087385463,0.415538,100520.0,100510.0,0.12098708]
[1734087389170,0.054738,100520.0,100510.0,0.12098708]
[1734087390065,0.005,100520.0,100510.0,0.12098708]
[1734087390366,0.005,100520.0,100510.0,0.48178708]
[1734087395178,0.005,100520.0,100510.0,0.71825714]
[1734087398073,0.11709389,100520.0,100510.0,0.29510125]
[1734087398672,0.11709389,100520.0,100510.0,0.12098708]
[1734087398881,0.47789389,100520.0,100510.0,0.12098708]
[1734087399979,0.47789389,100520.0,100510.0,0.05863119]
[1734087400275,0.62680461,100520.0,100510.0,0.05863119]
[1734087401473,0.62680461,100520.0,100510.0,0.00889119]
[1734087402277,0.6891605,100520.0,100510.0,0.001]
[1734087403172,0.72629224,100520.0,100510.0,0.001]
[1734087404575,0.66393635,100520.0,100510.0,0.050743]
[1734087404789,0.72629224,100520.0,100510.0,0.050743]
[1734087405175,0.66393635,100520.0,100510.0,0.11309889]
[1734087405374,0.56444872,100520.0,100510.0,0.11309889]
[1734087405684,0.415538,100520.0,100510.0,0.11309889]
[1734087406385,0.47789389,100520.0,100510.0,0.11309889]
[1734087406683,0.415538,100520.0,100510.0,0.11309889]
[1734087409390,0.054738,100520.0,100510.0,0.71036895]
[1734087409776,0.054738,100520.0,100510.0,0.34956895]
[1734087410483,0.054738,100520.0,100510.0,0.71036895]
[1734087411683,0.054738,100520.0,100510.0,0.34956895]
[1734087414786,0.20364872,100520.0,100510.0,0.34956895]
[1734087415276,0.054738,100520.0,100510.0,0.34956895]
[1734087415473,0.005,100520.0,100510.0,0.34956895]
[1734087416491,0.06735589,100520.0,100510.0,0.28721306]
[1734087416787,0.62680461,100520.0,100510.0,0.050743]
[1734087416985,0.80549558,100520.0,100510.0,0.050743]
[1734087417890,0.9673391,100520.0,100510.0,0.050743]
[1734087418388,0.90498321,100520.0,100510.0,0.050743]
[1734087418591,0.9673391,100520.0,100510.0,0.050743]
[1734087422294,0.90498321,100520.0,100510.0,0.001]
[1734087422487,0.9673391,100520.0,100510.0,0.001]
[1734087422682,0.8267658,100520.0,100510.0,0.001]
[1734087423997,0.76440991,100520.0,100510.0,0.001]
[1734087424388,0.75607249,100520.0,100510.0,0.11309389]
[1734087424586,0.20375598,100520.0,100510.0,0.11309389]
[1734087424989,0.20375598,100520.0,100510.0,0.34956395]
[1734087425988,0.26611187,100520.0,100510.0,0.34956395]
[1734087426491,0.20375598,100520.0,100510.0,0.39309669]
[1734087426790,0.27323766,100520.0,100510.0,0.34956395]
[1734087428693,0.27323766,100520.0,100510.0,0.41196395]
[1734087428995,0.12421968,100520.0,100510.0,1.34057906]
[1734087430093,0.12421968,100520.0,100510.0,1.34035552]
[1734087431199,0.005,100520.0,100510.0,1.34035552]
[1734087439204,0.005,100520.0,100510.0,1.34027941]
[1734087440900,0.12421968,100520.0,100510.0,0.77276395]
[1734087442803,0.12421968,100520.0,100510.0,0.79292097]
[1734087444614,0.005,100520.0,100510.0,1.36022636]
[1734087447600,0.005,100520.0,100510.0,1.29787047]
[1734087447910,0.005,100520.0,100510.0,1.36022636]
[1734087448700,0.005,100520.0,100510.0,1.42258225]
[1734087449002,0.11921968,100530.0,100520.0,0.049733]
[1734087449204,0.11921968,100530.0,100520.0,1.06737034]
[1734087449399,0.62903766,100540.0,100530.0,0.049728]
[1734087449599,0.62903766,100540.0,100530.0,0.28947835]
[1734087450205,0.26823766,100540.0,100530.0,0.65027835]
[1734087450405,0.11921968,100540.0,100530.0,0.88681634]
[1734087451006,0.12421968,100540.0,100530.0,0.88781634]
[1734087456207,0.12421968,100540.0,100530.0,0.89621461]
[1734087459706,0.12421968,100540.0,100530.0,0.83385872]
[1734087459912,0.23629857,100540.0,100530.0,0.23652073]
[1734087461104,0.17394268,100540.0,100530.0,0.29887662]
[1734087461308,0.12421968,100540.0,100530.0,0.29887662]
[1734087465617,0.12421968,100540.0,100530.0,0.53541461]
[1734087465824,0.17394268,100540.0,100530.0,0.29887662]
[1734087466230,0.17394268,100540.0,100530.0,0.53541461]
[1734087466925,0.17394268,100540.0,100530.0,0.29887662]
[1734087467419,0.17394268,100540.0,100530.0,0.53541461]
[1734087470622,0.17394268,100540.0,100530.0,0.29887662]
[1734087471318,0.32296066,100540.0,100530.0,0.29887662]
[1734087471523,0.17394268,100540.0,100530.0,0.53541461]
[1734087472930,0.12421968,100540.0,100530.0,0.53541461]
[1734087473127,0.12421968,100540.0,100530.0,0.89621461]
[1734087473328,0.12421968,100540.0,100530.0,0.89620618]
[1734087473521,0.12421968,100540.0,100530.0,0.89620482]
[1734087474125,0.12421968,100540.0,100530.0,0.71882015]
[1734087474431,0.14901798,100560.0,100530.0,1.7762282]
[1734087474627,0.19894591,100570.0,100560.0,0.049714]
[1734087474832,0.05,100570.0,100560.0,0.94884615]
[1734087475130,0.05,100570.0,100560.0,1.13196785]
[1734087475321,0.05,100570.0,100560.0,1.01348849]
[1734087475522,0.05,100570.0,100560.0,0.83638028]
[1734087476124,0.05,100570.0,100560.0,1.01339992]
[1734087476733,0.05,100570.0,100560.0,1.01439992]
[1734087477026,0.05,100570.0,100560.0,0.6478685]
[1734087477229,0.05,100570.0,100560.0,0.88725095]
[1734087477628,0.05,100570.0,100560.0,0.65089645]
[1734087477833,0.16206489,100570.0,100560.0,0.65089645]
[1734087478028,0.05,100570.0,100560.0,0.65089645]
[1734087478537,0.05,100570.0,100560.0,0.6594314]
[1734087479339,0.64791505,100600.0,100560.0,1.65698368]
[1734087479534,0.64791505,100600.0,100590.0,0.06235589]
[1734087479535,0.51891808,100600.0,100590.0,0.06235589]
[1734087479919,0.58127397,100600.0,100580.0,0.049701]
[1734087480125,0.3608,100590.0,100580.0,0.049701]
[1734087480325,0.3608,100590.0,100580.0,0.11205689]
[1734087480824,0.58127397,100600.0,100590.0,0.001]
[1734087481030,1.00442986,100600.0,100590.0,0.001]
[1734087481230,0.97913154,100600.0,100570.0,0.61866893]
[1734087481434,0.42315589,100590.0,100580.0,0.001]
[1734087482030,0.5722634,100590.0,100580.0,0.001]
[1734087482429,0.6359634,100590.0,100580.0,0.001]
[1734087482836,0.6359634,100590.0,100570.0,0.68102482]
[1734087482837,0.6359634,100590.0,100570.0,0.50416489]
[1734087483037,0.6359634,100590.0,100580.0,0.001]
[1734087483232,0.57360751,100590.0,100580.0,0.001]
[1734087483535,0.57360751,100590.0,100580.0,0.002]
[1734087484338,0.57360751,100590.0,100580.0,0.001]
[1734087484937,0.21280751,100590.0,100580.0,0.001]
[1734087485127,0.57360751,100590.0,100580.0,0.001]
[1734087485333,0.57360751,100590.0,100580.0,0.002]
[1734087487042,0.66261432,100590.0,100580.0,0.002]
[1734087487727,1.06342613,100590.0,100580.0,0.002]
[1734087487928,0.049715,100560.0,100540.0,1.27363543]
[1734087488231,0.410515,100560.0,100540.0,0.78660461]
[1734087488435,0.410515,100560.0,100540.0,0.42580461]
[1734087489736,0.410515,100560.0,100540.0,0.42680461]
[1734087489937,0.410515,100560.0,100540.0,0.37708361]
[1734087490136,0.410515,100560.0,100550.0,0.049719]
[1734087490726,0.049715,100560.0,100550.0,0.049719]
[1734087490941,0.410515,100560.0,100550.0,0.049719]
[1734087491133,0.410515,100560.0,100540.0,0.42580561]
[1734087491341,0.411515,100560.0,100550.0,0.001]
[1734087491532,0.411515,100560.0,100550.0,0.09590931]
[1734087491832,0.411515,100560.0,100550.0,0.14562831]
[1734087492234,0.412515,100560.0,100550.0,0.14562831]
[1734087492840,0.412515,100560.0,100550.0,0.14462831]
[1734087493036,0.412515,100560.0,100550.0,0.049719]
[1734087493730,0.050715,100560.0,100550.0,0.050719]
[1734087494131,0.411515,100560.0,100550.0,0.050719]
[1734087494740,0.13972638,100560.0,100550.0,0.050719]
[1734087494927,0.050715,100560.0,100550.0,0.050719]
[1734087495330,0.411515,100560.0,100550.0,0.050719]
[1734087495741,0.50052638,100560.0,100550.0,0.050719]
[1734087495938,0.050715,100560.0,100550.0,0.050719]
[1734087496526,0.13972638,100560.0,100550.0,0.050719]
[1734087497343,0.13972638,100560.0,100550.0,0.22757893]
[1734087499230,0.23463569,100560.0,100550.0,0.22757893]
[1734087499435,0.62753569,100560.0,100550.0,0.001]
[1734087499829,0.82189306,100560.0,100550.0,0.001]
[1734087500036,0.72698375,100560.0,100550.0,0.001]
[1734087500235,0.63797237,100560.0,100550.0,0.001]
[1734087501044,0.72713107,100560.0,100550.0,0.001]
[1734087501241,0.63797237,100560.0,100550.0,0.001]
[1734087501544,0.26689861,100560.0,100550.0,0.050719]
[1734087503039,0.1719893,100560.0,100550.0,0.050719]
[1734087504139,0.082815,100560.0,100550.0,0.050719]
[1734087507146,0.1720317,100560.0,100550.0,0.050719]
[1734087507952,0.082815,100560.0,100550.0,0.050719]
[1734087508250,0.17203239,100560.0,100550.0,0.050719]
[1734087508845,0.2669417,100560.0,100550.0,0.22777836]
[1734087509346,0.2669417,100560.0,100550.0,0.001]
[1734087509648,0.72718976,100560.0,100550.0,0.001]
[1734087509864,0.63797237,100560.0,100550.0,0.001]
[1734087510040,2.13797237,100560.0,100550.0,0.001]
[1734087510240,2.22719658,100560.0,100550.0,0.001]
[1734087510445,0.78666803,100560.0,100550.0,0.001]
[1734087510844,2.28666803,100560.0,100550.0,0.001]
[1734087512747,0.78666803,100560.0,100550.0,0.001]
[1734087515947,0.19940966,100560.0,100550.0,0.050719]
[1734087516249,0.14001845,100560.0,100550.0,0.22777836]
[1734087516443,0.14001845,100560.0,100550.0,0.46385751]
[1734087517554,0.19940966,100560.0,100550.0,0.46385751]
[1734087518846,0.70481455,100570.0,100560.0,0.30059034]
[1734087519047,0.75452355,100570.0,100560.0,0.30059034]
[1734087519339,0.85397161,100570.0,100560.0,0.30059034]
[1734087519849,0.85497161,100570.0,100560.0,0.4776497]
[1734087521452,0.85497161,100570.0,100560.0,0.30159034]
[1734087523260,0.82238213,100570.0,100560.0,0.30159034]
[1734087523950,0.82238213,100570.0,100560.0,0.4786497]
[1734087538275,0.76018213,100570.0,100560.0,0.4786497]
[1734087541459,0.82358213,100570.0,100560.0,0.30159034]
[1734087545478,0.82358213,100570.0,100560.0,0.4786497]
[1734087545670,0.64514734,100570.0,100560.0,0.4786497]
[1734087547389,0.58282751,100570.0,100560.0,0.4786497]
[1734087547572,0.64514734,100570.0,100560.0,0.4786497]
[1734087547971,0.64514734,100570.0,100560.0,0.30159034]
[1734087552384,0.70746717,100570.0,100560.0,0.30159034]
[1734087552775,0.91564109,100570.0,100560.0,0.30159034]
[1734087553280,2.41564109,100570.0,100560.0,0.30159034]
[1734087553481,0.91564109,100570.0,100560.0,0.30159034]
[1734087554082,2.35332126,100570.0,100560.0,0.30159034]
[1734087554780,2.41564109,100570.0,100560.0,0.30159034]
[1734087554977,2.20746717,100570.0,100560.0,0.30159034]
[1734087556482,2.65355414,100570.0,100540.0,0.47373851]
[1734087556685,1.16154621,100550.0,100540.0,0.23765936]
[1734087557886,1.16154621,100550.0,100540.0,0.23865936]
[1734087558473,1.26100416,100550.0,100540.0,0.0616]
[1734087558679,1.26100416,100550.0,100540.0,0.001]
[1734087558884,1.38782399,100550.0,100540.0,0.001]
[1734087559784,1.23877518,100550.0,100540.0,0.001]
[1734087560482,1.3876879,100550.0,100540.0,0.001]
[1734087563086,2.8876879,100550.0,100540.0,0.001]
[1734087563991,2.89661389,100550.0,100540.0,0.001]
[1734087564288,1.39661389,100550.0,100540.0,0.001]